[Event "Canary Islands-ch Veterans 2019"]
[Site "La Palma"]
[Date "2019.05.02"]
[Round "1.1"]
[White "Rodriguez Melian, Jose Luis"]
[Black "Garcia De La Banda, Francisco"]
[Result "0-1"]
[ECO "A90"]
[WhiteElo "2076"]
[BlackElo "1872"]
[Annotator "NA"]
[PlyCount "104"]
[EventDate "2019.05.02"]
[EventType "swiss"]
[EventCountry "ESP"]
[SourceTitle "playchess.com"]
[Source "ChessBase"]
[SourceQuality "1"]
[TimeControl "5400+30"]

1. d4 {[%emt 0:00:00]} e6 {[%emt 0:00:00]} 2. c4 {[%emt 0:00:00]} f5 {[%emt 0:00:00]} 3. g3 {[%emt 0:00:00]} Nf6 {[%emt 0:00:07]} 4. Bg2 {[%emt 0:00:00]} Ne4 {[%emt 0:00:26]} 5. Nh3 {[%emt 0:04:52]} Be7 {[%emt 0:00:35]} 6. O-O {[%emt 0:00:28]} O-O {[%emt 0:00:06]} 7. b3 {[%emt 0:06:49]} d5 {[%emt 0:00:28]} 8. Bb2 {[%emt 0:00:12]} c6 {[%emt 0:00:09]} 9. f3 {[%emt 0:07:37]} Nd6 {[%emt 0:09:02]} 10. Nd2 {[%emt 0:00:09]} g5 {[%emt 0:00:14]} 11. e4 {[%emt 0:01:23]} f4 {[%emt 0:00:10]} 12. Qe2 {[%emt 0:07:46]} Ne8 {[%emt 0:03:38]} 13. Rae1 {[%emt 0:06:44]} Bb4 {[%emt 0:07:36]} 14. gxf4 {[%emt 0:05:18]} gxf4 {[%emt 0:00:09]} 15. exd5 {[%emt 0:00:21]} cxd5 {[%emt 0:00:20]} 16. cxd5 {[%emt 0:00:13]} exd5 {[%emt 0:00:15]} 17. Nxf4 {[%emt 0:01:00]} Qg5 {[%emt 0:01:19]} 18. a3 {[%emt 0:02:29]} Bxd2 {[%emt 0:10:07]} 19. Qxd2 {[%emt 0:00:03]} Ng7 {[%emt 0:00:11]} 20. Bc1 {[%emt 0:00:48]} Nc6 {[%emt 0:00:06]} 21. Kh1 {[%emt 0:04:51]} Kh8 {[%emt 0:09:32]} 22. b4 {[%emt 0:00:14]} Bd7 {[%emt 0:01:11]} 23. b5 {[%emt 0:05:08]} Ne7 {[%emt 0:00:46]} 24. Qb4 {[%emt 0:01:27]} Rf7 {[%emt 0:03:34]} 25. Ne6 {[%emt 0:01:17]} Qg6 {[%emt 0:02:22]} 26. Ng5 {[%emt 0:00:20]} Ngf5 {[%emt 0:02:23]} 27. Nxf7+ {[%emt 0:01:26]} Qxf7 {[%emt 0:00:02]} 28. Bf4 {[%emt 0:00:42]} Ng6 {[%emt 0:00:41]} 29. Be5+ {[%emt 0:04:56]} Nxe5 {[%emt 0:00:56]} 30. dxe5 {[%emt 0:00:03]} Rg8 {[%emt 0:00:51]} 31. e6 {[%emt 0:01:33]} Bxe6 {[%emt 0:00:08]} 32. Qb2+ {[%emt 0:00:23]} d4 {[%emt 0:00:57]} 33. Bh3 {[%emt 0:01:21]} Rd8 {[%emt 0:04:29]} 34. Bxf5 {[%emt 0:02:13]} Bxf5 {[%emt 0:01:03]} 35. Qe2 {[%emt 0:00:11]} Bg6 {[%emt 0:03:20]} 36. Qe5+ {[%emt 0:00:58]} Kg8 {[%emt 0:00:02]} 37. f4 {[%emt 0:00:23]} Rd5 {[%emt 0:01:34]} 38. Qb8+ {[%emt 0:03:55]} Kg7 {[%emt 0:00:01]} 39. Re5 {[%emt 0:01:26]} d3 {[%emt 0:00:28]} 40. Qc8 {[%emt 0:13:27]} Rxe5 {[%emt 0:02:05]} 41. Qc3 {[%emt 0:00:02]} Be4+ {[%emt 0:00:02]} 42. Kg1 {[%emt 0:00:34]} Qg6+ {[%emt 0:00:02]} 43. Kf2 {[%emt 0:00:08]} Qb6+ {[%emt 0:04:50]} 44. Kg3 {[%emt 0:00:59]} Qg6+ {[%emt 0:02:52]} 45. Kf2 {[%emt 0:00:02]} Qg2+ {[%emt 0:00:01]} 46. Ke3 {[%emt 0:00:02]} Qe2+ {[%emt 0:00:16]} 47. Kd4 {[%emt 0:00:03]} Re7 {[%emt 0:00:50]} (47... Rd5+ $142 48. Kc4+ {[#]} Kf7 $1 {[%mdl 512]} 49. Re1 Qf2 50. Ra1 Rc5+ {[%mdl 64] Skewer} 51. Kb4 Rxc3 52. Kxc3 Qc2+ 53. Kd4 d2 54. Ke5 Qd3 55. f5 Bg2 56. Kf4 Kf6 57. Kg4 Qh3+ {[%mdl 64] Double Attack} 58. Kf4 Qf3#) 48. Rg1+ {[%emt 0:12:51]} Kf7 {[%emt 0:02:03]} 49. Qc4+ {[%emt 0:01:00]} Kf6 {[%emt 0:00:12]} 50. Qg8 {[%emt 0:02:00]} Rd7+ {[%emt 0:03:29]} 51. Kc3 {[%emt 0:00:47]} Qc2+ {[%emt 0:00:03]} 52. Kb4 {[%emt 0:00:13]} Rd4+ {[%emt 0:00:02]} 0-1

[Event "Canary Islands-ch Veterans 2019"]
[Site "La Palma"]
[Date "2019.05.02"]
[Round "1.2"]
[White "Poretti, Ennio"]
[Black "Lopez Pereyra, Antonio"]
[Result "0-1"]
[ECO "B58"]
[WhiteElo "1777"]
[BlackElo "2073"]
[Annotator "NA"]
[PlyCount "54"]
[EventDate "2019.05.02"]
[EventType "swiss"]
[EventCountry "ESP"]
[SourceTitle "playchess.com"]
[Source "ChessBase"]
[SourceQuality "1"]
[TimeControl "5400+30"]

1. e4 {[%emt 0:00:00]} c5 {[%emt 0:00:05]} 2. Nf3 {[%emt 0:00:08]} Nc6 {[%emt 0:00:18]} 3. d4 {[%emt 0:00:16]} cxd4 {[%emt 0:00:08]} 4. Nxd4 {[%emt 0:00:08]} Nf6 {[%emt 0:00:06]} 5. Nc3 {[%emt 0:00:08]} d6 {[%emt 0:00:21]} 6. Be2 {[%emt 0:01:43]} e5 {[%emt 0:00:58]} 7. Nf3 {[%emt 0:01:09]} h6 {[%emt 0:00:35]} 8. h3 {[%emt 0:02:41]} Be7 {[%emt 0:00:39]} 9. Be3 {[%emt 0:01:31]} Be6 {[%emt 0:01:07]} 10. Qd2 {[%emt 0:07:29]} O-O {[%emt 0:01:44]} 11. g4 {[%emt 0:02:08]} d5 {[%emt 0:02:21]} 12. exd5 {[%emt 0:04:03]} Nxd5 {[%emt 0:00:09]} 13. Rd1 {[%emt 0:07:29]} Nxe3 {[%emt 0:01:18]} 14. Qxe3 {[%emt 0:00:17]} Qa5 {[%emt 0:00:15]} 15. O-O {[%emt 0:01:42]} f5 {[%emt 0:01:32]} 16. g5 {[%emt 0:05:52]} hxg5 {[%emt 0:03:30]} 17. b4 {[%emt 0:09:02]} f4 {[%emt 0:11:47]} 18. Qe4 {[%emt 0:27:25]} Qxb4 {[%emt 0:01:21]} 19. Qg6 {[%emt 0:01:31]} Bf5 {[%emt 0:05:31]} 20. Qh5 {[%emt 0:02:33]} Qxc3 {[%emt 0:01:47]} 21. Nxg5 {[%emt 0:05:29]} Bxg5 {[%emt 0:00:53]} 22. Qxg5 {[%emt 0:00:36]} Qxh3 {[%emt 0:02:33]} 23. Rd3 {[%emt 0:12:44]} Bxd3 {[%emt 0:01:37]} 24. Bxd3 {[%emt 0:00:01]} Nd4 {[%emt 0:00:39]} 25. f3 {[%emt 0:02:12]} Qg3+ {[%emt 0:00:54]} 26. Qxg3 {[%emt 0:00:27]} fxg3 {[%emt 0:00:02]} 27. Kg2 {[%emt 0:00:12]} Rac8 {[%emt 0:01:41]} 0-1

[Event "Canary Islands-ch Veterans 2019"]
[Site "La Palma"]
[Date "2019.05.03"]
[Round "2.1"]
[White "Lopez Pereyra, Antonio"]
[Black "Galvan Sarmiento, Jose Luis"]
[Result "0-1"]
[ECO "C11"]
[WhiteElo "2073"]
[BlackElo "1909"]
[Annotator "NA"]
[PlyCount "97"]
[EventDate "2019.05.02"]
[EventType "swiss"]
[EventCountry "ESP"]
[SourceTitle "playchess.com"]
[Source "ChessBase"]
[SourceQuality "1"]
[TimeControl "5400+30"]

1. e4 {[%emt 0:00:45]} e6 {[%emt 0:00:00]} 2. d4 {[%emt 0:00:35]} d5 {[%emt 0:00:00]} 3. Nc3 {[%emt 0:00:09]} Nf6 {[%emt 0:00:00]} 4. e5 {[%emt 0:00:26]} Nfd7 {[%emt 0:00:08]} 5. Nce2 {[%emt 0:02:07]} c5 {[%emt 0:00:35]} 6. c3 {[%emt 0:00:06]} Nc6 {[%emt 0:00:07]} 7. Nf3 {[%emt 0:00:19]} Qb6 {[%emt 0:00:53]} 8. g3 {[%emt 0:00:38]} Be7 {[%emt 0:01:10]} 9. Bh3 {[%emt 0:01:43]} a5 {[%emt 0:05:44]} 10. O-O {[%emt 0:03:29]} Qc7 {[%emt 0:05:19]} 11. Nf4 {[%emt 0:03:01]} Nf8 {[%emt 0:04:33]} 12. Nh5 {[%emt 0:15:23]} Rg8 {[%emt 0:00:11]} 13. Ne1 {[%emt 0:03:11]} Bd7 {[%emt 0:01:19]} 14. Nc2 {[%emt 0:01:32]} b5 {[%emt 0:06:30]} 15. Ne3 {[%emt 0:04:43]} b4 {[%emt 0:00:27]} 16. f4 {[%emt 0:01:25]} Qa7 {[%emt 0:05:17]} 17. Nc2 {[%emt 0:06:36]} a4 {[%emt 0:01:26]} 18. Be3 {[%emt 0:03:22]} a3 {[%emt 0:00:21]} 19. bxa3 {[%emt 0:00:04]} bxc3 {[%emt 0:00:14]} 20. Qg4 {[%emt 0:06:15]} cxd4 {[%emt 0:01:50]} 21. Bf2 {[%emt 0:01:47]} Ng6 {[%emt 0:00:26]} 22. Qd1 {[%emt 0:03:28]} Bc5 {[%emt 0:00:29]} 23. g4 {[%emt 0:01:42]} Rb8 {[%emt 0:01:03]} 24. Qd3 {[%emt 0:13:15]} Bc8 {[%emt 0:05:59]} 25. Qg3 {[%emt 0:04:36]} Ba6 {[%emt 0:00:29]} 26. f5 {[%emt 0:02:10]} Bxf1 {[%emt 0:02:53]} 27. Rxf1 {[%emt 0:01:14]} Ngxe5 {[%emt 0:02:53]} 28. fxe6 {[%emt 0:00:22]} fxe6 {[%emt 0:00:51]} 29. g5 {[%emt 0:01:18]} Rf8 {[%emt 0:14:21]} 30. Nf4 {[%emt 0:11:26]} Rxf4 {[%emt 0:04:57]} 31. Qxf4 {[%emt 0:00:02]} Nd3 {[%emt 0:00:08]} 32. Qg4 {[%emt 0:01:57]} Nxf2 {[%emt 0:00:14]} 33. Qxe6+ {[%emt 0:00:21]} Ne7 {[%emt 0:00:13]} 34. Kxf2 {[%emt 0:06:47]} Rb2 {[%emt 0:01:52]} 35. Kg3 {[%emt 0:00:37]} Rxc2 {[%emt 0:03:39]} 36. Qf7+ {[%emt 0:00:08]} Kd8 {[%emt 0:00:11]} 37. Qf8+ {[%emt 0:00:02]} Kc7 {[%emt 0:00:14]} 38. Rf7 {[%emt 0:00:11]} Kb6 {[%emt 0:01:19]} 39. Qxg7 {[%emt 0:01:42]} Ka5 {[%emt 0:00:49]} 40. Qxh7 {[%emt 0:00:21]} Qc7+ {[%emt 0:00:32]} 41. Kf3 {[%emt 0:00:02]} d3 {[%emt 0:00:55]} 42. Kg4 {[%emt 0:00:48]} Rd2 {[%emt 0:01:31]} 43. Qg7 {[%emt 0:00:30]} d4 {[%emt 0:01:01]} 44. Qf8 {[%emt 0:00:50]} Qc8+ {[%emt 0:00:38]} 45. Qxc8 {[%emt 0:00:30]} Nxc8 {[%emt 0:00:10]} 46. g6 {[%emt 0:00:33]} c2 {[%emt 0:01:14]} 47. Rf1 {[%emt 0:00:27]} Rd1 {[%emt 0:00:27]} 48. g7 {[%emt 0:00:03]} Ne7 {[%emt 0:00:11]} 49. Rh1 {[%emt 0:01:27]} 0-1

[Event "Canary Islands-ch Veterans 2019"]
[Site "La Palma"]
[Date "2019.05.03"]
[Round "2.2"]
[White "Garcia De La Banda, Francisco"]
[Black "Thoene, Ruediger"]
[Result "1-0"]
[ECO "B06"]
[WhiteElo "1872"]
[BlackElo "1926"]
[Annotator "NA"]
[PlyCount "52"]
[EventDate "2019.05.02"]
[EventType "swiss"]
[EventCountry "ESP"]
[SourceTitle "playchess.com"]
[Source "ChessBase"]
[SourceQuality "1"]
[TimeControl "5400+30"]

1. f4 {[%emt 0:00:00]} g6 {[%emt 0:01:07]} 2. Nc3 {[%emt 0:00:28]} Bg7 {[%emt 0:01:30]} 3. e4 {[%emt 0:00:33]} c5 {[%emt 0:00:11]} 4. d3 {[%emt 0:01:02]} d6 {[%emt 0:01:27]} 5. Be3 {[%emt 0:00:10]} Nc6 {[%emt 0:00:07]} 6. Qd2 {[%emt 0:00:07]} a6 {[%emt 0:03:54]} 7. Be2 {[%emt 0:00:11]} b5 {[%emt 0:01:49]} 8. Nf3 {[%emt 0:00:08]} b4 {[%emt 0:01:10]} 9. Nd1 {[%emt 0:00:03]} Bd7 {[%emt 0:03:25]} 10. c3 {[%emt 0:00:22]} Nf6 {[%emt 0:00:41]} 11. Nf2 {[%emt 0:00:33]} Rb8 {[%emt 0:02:02]} 12. O-O {[%emt 0:00:16]} O-O {[%emt 0:00:22]} 13. d4 {[%emt 0:00:58]} bxc3 {[%emt 0:00:49]} 14. bxc3 {[%emt 0:00:02]} Qa5 {[%emt 0:11:49]} 15. dxc5 {[%emt 0:05:37]} Ng4 {[%emt 0:01:07]} 16. e5 {[%emt 0:12:11]} Nxe3 {[%emt 0:02:59]} 17. Qxe3 {[%emt 0:00:11]} dxe5 {[%emt 0:05:47]} 18. fxe5 {[%emt 0:00:30]} Rb2 {[%emt 0:10:30]} 19. Bc4 {[%emt 0:01:30]} Bf5 {[%emt 0:10:46]} 20. Rfc1 {[%emt 0:12:10]} Rfb8 {[%emt 0:10:50]} 21. h3 {[%emt 0:03:11]} Qa4 {[%emt 0:03:51]} 22. Bb3 {[%emt 0:03:07]} Qa3 {[%emt 0:03:22]} 23. Nd1 {[%emt 0:01:35]} Rd8 {[%emt 0:06:02]} 24. Nxb2 {[%emt 0:02:16]} Qxb2 {[%emt 0:00:03]} 25. Rd1 {[%emt 0:00:11]} a5 {[%emt 0:01:17]} 26. Rxd8+ {[%emt 0:00:59]} Nxd8 {[%emt 0:00:11]} 1-0

[Event "Canary Islands-ch Veterans 2019"]
[Site "La Palma"]
[Date "2019.05.03"]
[Round "3.1"]
[White "Galvan Sarmiento, Jose Luis"]
[Black "Garcia De La Banda, Francisco"]
[Result "1-0"]
[ECO "D00"]
[WhiteElo "1909"]
[BlackElo "1872"]
[Annotator "NA"]
[PlyCount "113"]
[EventDate "2019.05.02"]
[EventType "swiss"]
[EventCountry "ESP"]
[SourceTitle "playchess.com"]
[Source "ChessBase"]
[SourceQuality "1"]
[TimeControl "5400+30"]

1. d4 {[%emt 0:00:00]} d5 {[%emt 0:00:00]} 2. Bf4 {[%emt 0:00:00]} Bf5 {[%emt 0:00:19]} 3. e3 {[%emt 0:00:20]} Nf6 {[%emt 0:01:17]} 4. c4 {[%emt 0:01:01]} e6 {[%emt 0:00:11]} 5. Nc3 {[%emt 0:00:30]} (5. Nf3 Bxb1 6. Rxb1 Bb4+ 7. Ke2 dxc4 8. Qa4+ Nc6 9. Ne5 a5 10. Nxc6 Qd7 11. Rc1 Nd5 12. Rxc4 Nb6 13. Qc2 Nxc4 14. Nxb4 Nxb2 {1-0 (41) Nakamura,H (2769)-Giri,A (2782) Leuven 2018}) 5... c6 {[%emt 0:01:09]} 6. Qb3 {[%emt 0:02:20] D00: 1 d4 d5: Unusual lines} Qb6 {[%emt 0:00:58]} 7. c5 {[%emt 0:02:48]} Qxb3 {[%emt 0:00:31]} 8. axb3 {[%emt 0:00:09]} Nbd7 {[%emt 0:00:10]} 9. Be2 {[%emt 0:01:09]} Ne4 {[%emt 0:03:46]} 10. Nf3 {[%emt 0:01:33]} Be7 {[%emt 0:01:35]} 11. h3 {[%emt 0:00:34]} O-O {[%emt 0:04:41]} 12. b4 {[%emt 0:01:17]} a6 {[%emt 0:00:09]} 13. O-O $146 {[%emt 0:00:47]} ({Predecessor:} 13. Nxe4 Bxe4 {½-½ (26) Lecky,J (2067)-Kovac,L (2146) Slovakia 2017}) 13... h6 {[%emt 0:04:14]} 14. Nxe4 {[%emt 0:00:40]} Bxe4 {[%emt 0:00:19]} 15. Nd2 {[%emt 0:00:09]} Bh7 {[%emt 0:00:24]} 16. Nb3 {[%emt 0:00:14]} f6 {[%emt 0:01:35]} 17. Na5 {[%emt 0:00:27]} e5 {[%emt 0:00:01]} 18. Bg3 {[%emt 0:00:47]} Ra7 {[%emt 0:02:32]} 19. b5 {[%emt 0:13:33]} cxb5 {[%emt 0:27:57]} 20. c6 {[%emt 0:04:37]} Nb8 {[%emt 0:10:55]} 21. cxb7 {[%emt 0:11:11]} Bb4 {[%emt 0:05:11]} 22. dxe5 {[%emt 0:01:03]} Bxa5 {[%emt 0:00:01]} 23. Rxa5 {[%emt 0:00:32]} Rxb7 {[%emt 0:00:07]} 24. exf6 {[%emt 0:03:27]} Rxf6 {[%emt 0:03:56]} 25. Rc1 {[%emt 0:03:57]} Nd7 {[%emt 0:04:26]} 26. Rc8+ {[%emt 0:01:45]} Kf7 {[%emt 0:00:15]} 27. Bg4 {[%emt 0:03:34]} Ke7 {[%emt 0:01:55]} 28. Ra1 {[%emt 0:00:01]} Bd3 {[%emt 0:03:41]} 29. Ra3 {[%emt 0:00:59]} Bc4 {[%emt 0:00:52]} 30. Bf3 {[%emt 0:04:41]} Nb6 {[%emt 0:07:16]} 31. Rc5 {[%emt 0:05:04]} Nd7 {[%emt 0:00:55]} 32. Rc8 {[%emt 0:02:52]} Nb6 {[%emt 0:00:02]} 33. Rc7+ {[%emt 0:03:20]} (33. Rh8 $18 {has better winning chances.}) 33... Rxc7 {[%emt 0:00:03]} 34. Bxc7 {[%emt 0:00:10]} Nd7 {[%emt 0:00:01]} 35. Rc3 {[%emt 0:00:40]} Nc5 {[%emt 0:01:27]} 36. Rc2 {[%emt 0:05:40]} Kd7 {[%emt 0:01:24]} 37. Be5 {[%emt 0:00:53]} Rf7 {[%emt 0:00:46]} 38. Bxd5 {[%emt 0:01:37]} Bxd5 {[%emt 0:00:48]} 39. Rxc5 {[%emt 0:00:08]} Ke6 {[%emt 0:00:23]} 40. Bd4 {[%emt 0:01:55]} Rb7 41. e4 {[%emt 0:00:00]} Bc4 {[%emt 0:00:38]} 42. Rc6+ {[%emt 0:00:09]} Kf7 {[%emt 0:00:35]} 43. Rxa6 {[%emt 0:00:34]} Re7 {[%emt 0:02:19]} 44. Ra7 {[%emt 0:00:12]} Rxa7 {[%emt 0:02:16]} 45. Bxa7 {[%emt 0:00:13]} Ke7 {[%emt 0:00:35]} 46. h4 {[%emt 0:00:59]} g6 {[%emt 0:00:02]} 47. f3 {[%emt 0:00:39]} Bf7 {[%emt 0:00:03]} 48. Kf2 {[%emt 0:00:21]} Ke6 {[%emt 0:00:28]} 49. Bd4 {[%emt 0:00:13]} Be8 {[%emt 0:00:05]} 50. g4 {[%emt 0:03:03]} h5 $2 {[%emt 0:01:49]} (50... Kf7 51. f4 Kf8) 51. gxh5 {[%emt 0:00:50]} gxh5 {[%emt 0:00:01]} 52. f4 {[%emt 0:00:14]} Bc6 {[%emt 0:00:33]} 53. f5+ {[%emt 0:00:36]} Ke7 {[%emt 0:00:05]} 54. Ke3 {[%emt 0:00:29]} Be8 {[%emt 0:00:50]} 55. e5 {[%emt 0:00:32]} Bc6 {[%emt 0:00:35]} 56. Kf4 {[%emt 0:00:21]} Bd7 {[%emt 0:00:36]} 57. Bc5+ {[%emt 0:00:42]} 1-0

[Event "Canary Islands-ch Veterans 2019"]
[Site "La Palma"]
[Date "2019.05.03"]
[Round "3.2"]
[White "Diaz Franco, Francisco Jorge"]
[Black "Rodriguez Melian, Jose Luis"]
[Result "0-1"]
[ECO "C42"]
[WhiteElo "1949"]
[BlackElo "2076"]
[Annotator "NA"]
[PlyCount "86"]
[EventDate "2019.05.02"]
[EventType "swiss"]
[EventCountry "ESP"]
[SourceTitle "playchess.com"]
[Source "ChessBase"]
[SourceQuality "1"]
[TimeControl "5400+30"]

1. e4 {[%emt 0:10:05]} e5 {[%emt 0:00:00]} 2. Nf3 {[%emt 0:00:13]} Nf6 {[%emt 0:00:00]} 3. Bc4 {[%emt 0:01:33]} Nxe4 {[%emt 0:00:36]} 4. Nxe5 {[%emt 0:02:16]} d5 {[%emt 0:00:05]} 5. Be2 {[%emt 0:02:45]} Bd6 {[%emt 0:00:30]} 6. d4 {[%emt 0:00:34]} O-O {[%emt 0:00:09]} 7. O-O {[%emt 0:01:15]} Re8 {[%emt 0:00:11]} 8. Nf3 {[%emt 0:00:37]} c5 {[%emt 0:05:49]} 9. Be3 {[%emt 0:04:21]} c4 {[%emt 0:00:38]} 10. Nc3 {[%emt 0:01:27]} Nxc3 {[%emt 0:00:26]} 11. bxc3 {[%emt 0:12:03]} Qa5 {[%emt 0:00:15]} 12. Bd2 {[%emt 0:02:49]} Bf5 {[%emt 0:01:50]} 13. Ne1 {[%emt 0:04:35]} Nd7 {[%emt 0:04:12]} 14. Bg4 {[%emt 0:00:46]} Bxg4 {[%emt 0:00:38]} 15. Qxg4 {[%emt 0:00:02]} Nf6 {[%emt 0:00:02]} 16. Qd1 {[%emt 0:03:46]} Ne4 {[%emt 0:00:31]} 17. Nf3 {[%emt 0:01:31]} b5 {[%emt 0:04:53]} 18. Re1 {[%emt 0:03:33]} Nxc3 {[%emt 0:04:40]} 19. Bxc3 {[%emt 0:06:24]} Qxc3 {[%emt 0:00:05]} 20. Rxe8+ {[%emt 0:00:46]} Rxe8 {[%emt 0:00:03]} 21. Rb1 {[%emt 0:01:09]} b4 {[%emt 0:03:31]} 22. h4 {[%emt 0:01:28]} h6 {[%emt 0:01:06]} 23. Kf1 {[%emt 0:01:48]} a5 {[%emt 0:00:57]} 24. Qd2 {[%emt 0:00:29]} Qxd2 {[%emt 0:01:24]} 25. Nxd2 {[%emt 0:00:03]} Kf8 {[%emt 0:01:23]} 26. g3 {[%emt 0:00:52]} Ke7 {[%emt 0:00:08]} 27. Re1+ {[%emt 0:11:35]} Kd7 {[%emt 0:00:06]} 28. Rb1 {[%emt 0:03:47]} Kc6 {[%emt 0:00:19]} 29. Nf3 {[%emt 0:00:38]} Re4 {[%emt 0:01:03]} 30. Rc1 {[%emt 0:06:46]} Kb5 {[%emt 0:01:21]} 31. c3 {[%emt 0:02:31]} Re6 {[%emt 0:01:44]} 32. Rb1 {[%emt 0:02:16]} Ka4 {[%emt 0:00:12]} 33. cxb4 {[%emt 0:01:46]} axb4 {[%emt 0:00:15]} 34. Rb2 {[%emt 0:00:42]} Ka3 {[%emt 0:01:48]} 35. Rc2 {[%emt 0:00:27]} b3 {[%emt 0:04:22]} 36. axb3 {[%emt 0:02:42]} cxb3 {[%emt 0:01:31]} 37. Rc8 {[%emt 0:01:34]} Bb4 {[%emt 0:01:34]} 38. Ra8+ {[%emt 0:00:27]} Kb2 {[%emt 0:00:04]} 39. Ne5 {[%emt 0:00:41]} Rxe5 {[%emt 0:00:36]} 40. dxe5 {[%emt 0:00:09]} Kc2 {[%emt 0:00:04]} 41. Rb8 {[%emt 0:04:33]} Bc3 {[%emt 0:00:17]} 42. f4 {[%emt 0:01:28]} b2 {[%emt 0:00:07]} 43. Ke2 {[%emt 0:01:09]} d4 {[%emt 0:03:41]} 0-1

[Event "Canary Islands-ch Veterans 2019"]
[Site "La Palma"]
[Date "2019.05.04"]
[Round "4.1"]
[White "Galvan Sarmiento, Jose Luis"]
[Black "Fernandez Manrique, Agustin"]
[Result "1/2-1/2"]
[ECO "A48"]
[WhiteElo "1909"]
[BlackElo "2074"]
[Annotator "NA RC"]
[PlyCount "90"]
[EventDate "2019.05.02"]
[EventType "swiss"]
[EventCountry "ESP"]
[SourceTitle "playchess.com"]
[Source "ChessBase"]
[SourceQuality "1"]
[TimeControl "5400+30"]

1. d4 {[%emt 0:00:37]} Nf6 {[%emt 0:00:00]} 2. Bf4 {[%emt 0:00:07]} g6 {[%emt 0:00:00]} 3. e3 {[%emt 0:00:18]} Bg7 {[%emt 0:00:00]} 4. Be2 {[%emt 0:00:19]} O-O {[%emt 0:00:03]} 5. Nf3 {[%emt 0:00:37]} d6 {[%emt 0:00:12]} 6. h3 {[%emt 0:00:12]} b6 {[%emt 0:01:19]} 7. c4 {[%emt 0:00:31]} Nbd7 {[%emt 0:01:03]} 8. Nc3 {[%emt 0:00:14]} Bb7 {[%emt 0:00:25]} 9. O-O {[%emt 0:00:23]} e6 {[%emt 0:01:38]} 10. Bh2 {[%emt 0:01:42]} Qe7 {[%emt 0:02:34]} 11. Qc2 {[%emt 0:01:58] A48: 1 d4 Nf6 2 Nf3 g6: Torre, London and Colle Systems} (11. Rc1 e5 12. dxe5 dxe5 13. Nd5 Nxd5 14. cxd5 Nc5 15. b4 Ne4 16. Qc2 f5 17. Qxc7 Qxc7 18. Rxc7 Bxd5 19. Bxe5 Bxe5 20. Nxe5 {½-½ (49) Matlakov,M (2689)-Bartel,M (2622) Berlin 2015}) 11... e5 {[%emt 0:02:44]} 12. d5 {[%emt 0:00:14]} Ne8 {[%emt 0:06:27]} 13. Rad1 $146 {[%emt 0:06:27]} ({Predecessor:} 13. b4 f5 14. e4 Nef6 15. Nd2 Bh6 16. Bf3 Bxd2 17. Qxd2 f4 18. g4 Ne8 {0-1 (31) Sisak,R (2084)-Folk,P (2228) Czechia 2013}) 13... f5 {[%emt 0:02:06]} 14. b4 {[%emt 0:01:03]} g5 {[%emt 0:09:51]} 15. Nd2 {[%emt 0:00:56]} Nef6 {[%emt 0:03:56]} 16. a3 {[%emt 0:03:21]} a6 {[%emt 0:19:49]} 17. g4 {[%emt 0:10:22]} f4 {[%emt 0:11:35]} 18. Nce4 {[%emt 0:00:24]} Nxe4 {[%emt 0:00:10]} 19. Nxe4 {[%emt 0:00:26]} h6 {[%emt 0:04:29]} 20. Bd3 {[%emt 0:05:31]} Nf6 {[%emt 0:02:36]} 21. Nxf6+ {[%emt 0:05:59]} Qxf6 {[%emt 0:00:32]} 22. Bf5 {[%emt 0:01:11]} Bc8 {[%emt 0:03:11]} 23. Bxc8 {[%emt 0:01:54]} Raxc8 {[%emt 0:01:32]} 24. Qe4 {[%emt 0:00:15]} Ra8 {[%emt 0:05:43]} 25. Rc1 {[%emt 0:02:06]} a5 {[%emt 0:00:24]} 26. b5 {[%emt 0:04:50]} Rf7 {[%emt 0:02:00]} 27. a4 {[%emt 0:00:44]} Raf8 {[%emt 0:00:16]} 28. f3 {[%emt 0:00:07]} h5 {[%emt 0:04:41]} 29. Rce1 {[%emt 0:02:41]} Qh6 {[%emt 0:02:51]} 30. Re2 {[%emt 0:07:41]} hxg4 {[%emt 0:01:18]} 31. hxg4 {[%emt 0:00:08]} Bf6 {[%emt 0:00:42]} 32. Rff2 {[%emt 0:03:24]} Be7 {[%emt 0:00:55]} 33. Kf1 {[%emt 0:00:21]} Kg7 {[%emt 0:01:01]} 34. Ke1 {[%emt 0:00:14]} Rh8 {[%emt 0:01:21]} 35. Kd2 {[%emt 0:00:56]} Qg6 {[%emt 0:02:39]} 36. Qxg6+ {[%emt 0:01:07]} Kxg6 $15 {[%emt 0:00:01]} 37. e4 {[%emt 0:00:10]} Rh3 {[%emt 0:00:12]} 38. Kc2 {[%emt 0:01:19]} Rfh7 {[%emt 0:00:16]} 39. Kd2 {[%emt 0:00:10]} R7h4 {[%emt 0:00:17]} 40. Kc2 {[%emt 0:00:43]} Rh8 {[%emt 0:04:27]} 41. Kd2 {[%emt 0:00:21]} R8h7 {[%emt 0:01:10]} 42. Kc2 {[%emt 0:00:17]} R7h4 {[%emt 0:00:15]} 43. Kb2 {[%emt 0:00:23]} Rh8 {[%emt 0:02:38]} 44. Re3 {[%emt 0:00:04]} Kg7 {[%emt 0:00:07]} 45. Ree2 {[%emt 0:00:01]} Kg6 {[%emt 0:00:04]} 1/2-1/2